[Event "Titled Tuesday Blitz January 18 2022"]
[White "Logozar, Elijah"]
[Black "Girya, Olga"]
[WhiteFideId "30963788"]
[BlackFideId "4195752"]
[WhiteElo "2413"]
[BlackElo "2275"]
[Result "0-1"]
[Round "06"]
[TimeControl "180+1"]
[Date "2022.01.18"]
[WhiteClock "0:01:55"]
[BlackClock "0:01:07"]

1. e4 {[%clk 0:03:00]}  c6 {[%clk 0:02:59]} 2. d4 {[%clk 0:03:00]}  d5 {[%clk 0:02:59]} 3. e5 {[%clk 0:03:01]}  Bf5 {[%clk 0:02:59]} 4. h4 {[%clk 0:03:01]}  h5 {[%clk 0:02:59]} 5. Bd3 {[%clk 0:03:01]}  Bxd3 {[%clk 0:02:59]} 6. Qxd3 {[%clk 0:03:02]}  Qa5+ {[%clk 0:02:57]} 7. Nd2 {[%clk 0:03:01]}  e6 {[%clk 0:02:57]} 8. Nf3 {[%clk 0:02:58]}  Qa6 {[%clk 0:02:55]} 9. c4 {[%clk 0:02:57]}  Bb4 {[%clk 0:02:55]} 10. b3 {[%clk 0:02:57]}  Ne7 {[%clk 0:02:55]} 11. O-O {[%clk 0:02:56]}  Nd7 {[%clk 0:02:55]} 12. a4 {[%clk 0:02:47]}  c5 {[%clk 0:02:54]} 13. dxc5 {[%clk 0:02:44]}  Nxc5 {[%clk 0:02:49]} 14. Qc2 {[%clk 0:02:44]}  Rc8 {[%clk 0:02:26]} 15. cxd5 {[%clk 0:02:39]}  Nd3 {[%clk 0:02:09]} 16. Nc4 {[%clk 0:02:39]}  Nxc1 {[%clk 0:01:46]} 17. d6 {[%clk 0:02:33]}  Nxb3 {[%clk 0:01:31]} 18. Qxb3 {[%clk 0:02:28]}  Qxc4 {[%clk 0:01:30]} 19. Qxc4 {[%clk 0:02:16]}  Rxc4 {[%clk 0:01:29]} 20. dxe7 {[%clk 0:02:16]}  Kxe7 {[%clk 0:01:29]} 21. Rfd1 {[%clk 0:02:11]}  Rhc8 {[%clk 0:01:25]} 22. Rd3 {[%clk 0:02:10]}  Rc1+ {[%clk 0:01:23]} 23. Rxc1 {[%clk 0:02:09]}  Rxc1+ {[%clk 0:01:23]} 24. Kh2 {[%clk 0:02:09]}  Bc5 {[%clk 0:01:18]} 25. Rb3 {[%clk 0:02:08]}  b6 {[%clk 0:01:15]} 26. Kg3 {[%clk 0:02:07]}  Ra1 {[%clk 0:01:12]} 27. Kf4 {[%clk 0:02:06]}  f6 {[%clk 0:01:07]} 28. exf6+ {[%clk 0:01:55]}  gxf6 {[%clk 0:01:07]} 29. Kg3 {[%clk 0:01:55]}  Rxa4 {[%clk 0:01:07]} 0-1


[Site "https://www.chess.com"]

[Event "Titled Tuesday Blitz January 18 2022"]
[White "Lorparizangeneh, Shahin"]
[Black "Claridge-Hansen, William"]
[WhiteFideId "12521604"]
[BlackFideId "422509"]
[WhiteElo "2525"]
[BlackElo "2261"]
[Result "1-0"]
[Round "06"]
[TimeControl "180+1"]
[Date "2022.01.18"]
[WhiteClock "0:01:00"]
[BlackClock "0:00:03"]

1. e4 {[%clk 0:03:00]}  d5 {[%clk 0:03:00]} 2. exd5 {[%clk 0:03:00]}  Qxd5 {[%clk 0:03:01]} 3. Nc3 {[%clk 0:03:01]}  Qd6 {[%clk 0:03:01]} 4. d4 {[%clk 0:03:00]}  Nf6 {[%clk 0:03:01]} 5. Bc4 {[%clk 0:02:59]}  a6 {[%clk 0:03:01]} 6. Nf3 {[%clk 0:02:57]}  b5 {[%clk 0:03:01]} 7. Bb3 {[%clk 0:02:57]}  e6 {[%clk 0:03:00]} 8. Qe2 {[%clk 0:02:53]}  Bb7 {[%clk 0:02:58]} 9. Bg5 {[%clk 0:02:48]}  Nbd7 {[%clk 0:02:58]} 10. O-O-O {[%clk 0:02:42]}  Be7 {[%clk 0:02:56]} 11. d5 {[%clk 0:02:35]}  Nxd5 {[%clk 0:02:46]} 12. Nxd5 {[%clk 0:02:15]}  Bxd5 {[%clk 0:02:15]} 13. Bxd5 {[%clk 0:02:12]}  exd5 {[%clk 0:00:37]} 14. Rhe1 {[%clk 0:02:10]}  Nf6 {[%clk 0:00:37]} 15. Bxf6 {[%clk 0:02:04]}  Qxf6 {[%clk 0:00:31]} 16. Rxd5 {[%clk 0:02:04]}  c6 {[%clk 0:00:21]} 17. Rf5 {[%clk 0:01:52]}  Qh6+ {[%clk 0:00:12]} 18. Kb1 {[%clk 0:01:51]}  Qd6 {[%clk 0:00:12]} 19. Rd1 {[%clk 0:01:31]}  Qe6 {[%clk 0:00:08]} 20. Re5 {[%clk 0:01:31]}  Qf6 {[%clk 0:00:07]} 21. Qe3 {[%clk 0:01:29]}  Rc8 {[%clk 0:00:04]} 22. Re1 {[%clk 0:01:25]}  Rc7 {[%clk 0:00:04]} 23. Qb6 {[%clk 0:01:25]}  Rd7 {[%clk 0:00:03]} 24. Qb8+ {[%clk 0:01:23]}  Rd8 {[%clk 0:00:04]} 25. Qc7 {[%clk 0:01:10]}  Rd7 {[%clk 0:00:04]} 26. Qb8+ {[%clk 0:01:01]}  Rd8 {[%clk 0:00:04]} 27. Rxe7+ {[%clk 0:01:02]}  Qxe7 {[%clk 0:00:03]} 28. Rxe7+ {[%clk 0:01:02]}  Kxe7 {[%clk 0:00:04]} 29. Qe5+ {[%clk 0:01:02]}  Kd7 {[%clk 0:00:04]} 30. Qxg7 {[%clk 0:01:01]}  Rhg8 {[%clk 0:00:04]} 31. Qxf7+ {[%clk 0:01:01]}  Kc8 {[%clk 0:00:03]} 32. a3 {[%clk 0:01:00]}  Rxg2 {[%clk 0:00:03]} 33. Ne5 {[%clk 0:01:00]}  Rg1+ {[%clk 0:00:02]} 34. Ka2 {[%clk 0:00:59]}  Rd6 {[%clk 0:00:01]} 35. Qe8+ {[%clk 0:00:59]}  Kc7 {[%clk 0:00:02]} 36. Qe7+ {[%clk 0:00:59]}  Kb6 {[%clk 0:00:02]} 37. Qxd6 {[%clk 0:00:59]}  Re1 {[%clk 0:00:02]} 38. Qxc6+ {[%clk 0:01:00]}  Ka5 {[%clk 0:00:02]} 39. b4+ {[%clk 0:01:00]}  Ka4 {[%clk 0:00:03]} 40. Qxa6# {[%clk 0:01:00]} 1-0


[Site "https://www.chess.com"]

[Event "Titled Tuesday Blitz January 18 2022"]
[White "Maghsoodloo, Parham"]
[Black "Donchenko, Alexander"]
[WhiteFideId "12539929"]
[BlackFideId "24603295"]
[WhiteElo "2926"]
[BlackElo "2729"]
[Result "1-0"]
[Round "06"]
[TimeControl "180+1"]
[Date "2022.01.18"]
[WhiteClock "0:01:18"]
[BlackClock "0:00:26"]

1. e4 {[%clk 0:03:00]}  c5 {[%clk 0:02:59]} 2. Nf3 {[%clk 0:03:01]}  d6 {[%clk 0:02:59]} 3. d4 {[%clk 0:03:02]}  cxd4 {[%clk 0:03:00]} 4. Nxd4 {[%clk 0:03:03]}  Nf6 {[%clk 0:03:00]} 5. Nc3 {[%clk 0:03:04]}  a6 {[%clk 0:03:00]} 6. Bg5 {[%clk 0:03:04]}  Nbd7 {[%clk 0:03:00]} 7. f4 {[%clk 0:03:04]}  Qc7 {[%clk 0:03:00]} 8. Qf3 {[%clk 0:03:05]}  h6 {[%clk 0:02:58]} 9. Bh4 {[%clk 0:03:04]}  g5 {[%clk 0:02:58]} 10. fxg5 {[%clk 0:03:04]}  hxg5 {[%clk 0:02:59]} 11. Bxg5 {[%clk 0:03:05]}  Qc5 {[%clk 0:03:00]} 12. Be3 {[%clk 0:03:00]}  Ne5 {[%clk 0:03:00]} 13. Qe2 {[%clk 0:03:00]}  Neg4 {[%clk 0:03:00]} 14. Bg1 {[%clk 0:03:00]}  Bh6 {[%clk 0:03:00]} 15. a3 {[%clk 0:02:50]}  Qb6 {[%clk 0:02:54]} 16. Nb3 {[%clk 0:02:44]}  Qc6 {[%clk 0:02:47]} 17. g3 {[%clk 0:02:36]}  Ne5 {[%clk 0:02:40]} 18. h3 {[%clk 0:02:35]}  Bd7 {[%clk 0:02:23]} 19. Bg2 {[%clk 0:02:30]}  Rc8 {[%clk 0:02:18]} 20. Bd4 {[%clk 0:02:29]}  Be6 {[%clk 0:02:09]} 21. Rd1 {[%clk 0:02:08]}  Rg8 {[%clk 0:01:47]} 22. Qf2 {[%clk 0:02:06]}  Nfd7 {[%clk 0:01:42]} 23. O-O {[%clk 0:02:01]}  Bc4 {[%clk 0:01:19]} 24. Rfe1 {[%clk 0:02:01]}  Qc7 {[%clk 0:01:18]} 25. g4 {[%clk 0:01:47]}  b5 {[%clk 0:01:16]} 26. Nd2 {[%clk 0:01:45]}  Be6 {[%clk 0:01:15]} 27. Nf1 {[%clk 0:01:42]}  Bg5 {[%clk 0:01:07]} 28. Ne3 {[%clk 0:01:40]}  Nf6 {[%clk 0:01:05]} 29. Rf1 {[%clk 0:01:36]}  Nc4 {[%clk 0:01:02]} 30. Ned5 {[%clk 0:01:33]}  Bxd5 {[%clk 0:01:01]} 31. Nxd5 {[%clk 0:01:32]}  Nxd5 {[%clk 0:00:56]} 32. Qxf7+ {[%clk 0:01:30]}  Kd7 {[%clk 0:00:56]} 33. exd5 {[%clk 0:01:29]}  Rcf8 {[%clk 0:00:52]} 34. Qe6+ {[%clk 0:01:25]}  Kd8 {[%clk 0:00:52]} 35. Rf5 {[%clk 0:01:19]}  Bf6 {[%clk 0:00:27]} 36. Rxf6 {[%clk 0:01:17]}  exf6 {[%clk 0:00:28]} 37. Bxf6+ {[%clk 0:01:17]}  Rxf6 {[%clk 0:00:27]} 38. Qxg8+ {[%clk 0:01:18]}  Kd7 {[%clk 0:00:26]} 39. Qg7+ {[%clk 0:01:18]} 1-0


[Site "https://www.chess.com"]

[Event "Titled Tuesday Blitz January 18 2022"]
[White "Manukyan, Artyom"]
[Black "Terletsky, Oleg"]
[WhiteFideId "13305786"]
[BlackFideId "14116774"]
[WhiteElo "2034"]
[BlackElo "2050"]
[Result "1-0"]
[Round "06"]
[TimeControl "180+1"]
[Date "2022.01.18"]
[WhiteClock "0:00:14"]
[BlackClock "0:00:10"]

1. e4 {[%clk 0:03:00]}  e5 {[%clk 0:02:59]} 2. Nf3 {[%clk 0:03:01]}  Nc6 {[%clk 0:03:00]} 3. Bb5 {[%clk 0:03:01]}  a6 {[%clk 0:02:59]} 4. Bxc6 {[%clk 0:03:01]}  dxc6 {[%clk 0:03:00]} 5. O-O {[%clk 0:03:02]}  f6 {[%clk 0:03:01]} 6. d4 {[%clk 0:03:02]}  exd4 {[%clk 0:03:02]} 7. Nxd4 {[%clk 0:03:03]}  c5 {[%clk 0:03:02]} 8. Nb3 {[%clk 0:03:03]}  Qxd1 {[%clk 0:03:01]} 9. Rxd1 {[%clk 0:03:04]}  Bd7 {[%clk 0:03:02]} 10. Nc3 {[%clk 0:03:04]}  O-O-O {[%clk 0:03:01]} 11. Bf4 {[%clk 0:03:04]}  Be6 {[%clk 0:02:57]} 12. Rxd8+ {[%clk 0:03:01]}  Kxd8 {[%clk 0:02:58]} 13. Rd1+ {[%clk 0:03:01]}  Kc8 {[%clk 0:02:59]} 14. Nd5 {[%clk 0:03:01]}  Bxd5 {[%clk 0:02:59]} 15. Rxd5 {[%clk 0:03:02]}  b6 {[%clk 0:02:58]} 16. f3 {[%clk 0:03:01]}  Ne7 {[%clk 0:02:57]} 17. Rd1 {[%clk 0:03:01]}  g5 {[%clk 0:02:58]} 18. Bg3 {[%clk 0:02:59]}  Bg7 {[%clk 0:02:58]} 19. Kf2 {[%clk 0:02:55]}  f5 {[%clk 0:02:56]} 20. exf5 {[%clk 0:02:54]}  Nxf5 {[%clk 0:02:57]} 21. c3 {[%clk 0:02:54]}  Re8 {[%clk 0:02:30]} 22. Rd5 {[%clk 0:02:47]}  Ne3 {[%clk 0:02:05]} 23. Rxg5 {[%clk 0:02:22]}  Nd1+ {[%clk 0:02:04]} 24. Kg1 {[%clk 0:02:17]}  Bh6 {[%clk 0:01:54]} 25. Rh5 {[%clk 0:02:14]}  Be3+ {[%clk 0:01:48]} 26. Kf1 {[%clk 0:02:13]}  h6 {[%clk 0:01:41]} 27. Rf5 {[%clk 0:02:07]}  c4 {[%clk 0:01:31]} 28. Na1 {[%clk 0:01:34]}  Bc5 {[%clk 0:01:30]} 29. Re5 {[%clk 0:01:20]}  Rd8 {[%clk 0:01:03]} 30. Nc2 {[%clk 0:00:44]}  Rd2 {[%clk 0:00:59]} 31. Ke1 {[%clk 0:00:15]}  Rxc2 {[%clk 0:00:27]} 32. Kxd1 {[%clk 0:00:15]}  Rxg2 {[%clk 0:00:17]} 33. Re2 {[%clk 0:00:13]}  Rxe2 {[%clk 0:00:10]} 34. Kxe2 {[%clk 0:00:14]}  Kd7 {[%clk 0:00:08]} 35. Bf2 {[%clk 0:00:12]}  Bd6 {[%clk 0:00:07]} 36. Bg3 {[%clk 0:00:12]}  Bc5 {[%clk 0:00:07]} 37. h3 {[%clk 0:00:08]}  c6 {[%clk 0:00:06]} 38. Bf2 {[%clk 0:00:08]}  Bxf2 {[%clk 0:00:04]} 39. Kxf2 {[%clk 0:00:09]}  Ke6 {[%clk 0:00:05]} 40. Ke3 {[%clk 0:00:10]}  Ke5 {[%clk 0:00:05]} 41. f4+ {[%clk 0:00:10]}  Kd5 {[%clk 0:00:05]} 42. Kf3 {[%clk 0:00:09]}  h5 {[%clk 0:00:06]} 43. Kg3 {[%clk 0:00:09]}  Ke4 {[%clk 0:00:07]} 44. Kh4 {[%clk 0:00:07]}  Kxf4 {[%clk 0:00:07]} 45. Kxh5 {[%clk 0:00:08]}  Ke3 {[%clk 0:00:06]} 46. Kg5 {[%clk 0:00:08]}  Kd2 {[%clk 0:00:07]} 47. h4 {[%clk 0:00:08]}  Kc2 {[%clk 0:00:08]} 48. h5 {[%clk 0:00:09]}  Kxb2 {[%clk 0:00:08]} 49. h6 {[%clk 0:00:10]}  Kxc3 {[%clk 0:00:09]} 50. h7 {[%clk 0:00:11]}  Kb2 {[%clk 0:00:10]} 51. h8=Q+ {[%clk 0:00:12]}  c3 {[%clk 0:00:11]} 52. Qb8 {[%clk 0:00:12]}  b5 {[%clk 0:00:11]} 53. Qb6 {[%clk 0:00:12]}  c2 {[%clk 0:00:11]} 54. Qd4+ {[%clk 0:00:11]}  Kb1 {[%clk 0:00:11]} 55. Qb4+ {[%clk 0:00:11]}  Kxa2 {[%clk 0:00:12]} 56. Qc3 {[%clk 0:00:11]}  Kb1 {[%clk 0:00:12]} 57. Qb3+ {[%clk 0:00:12]}  Kc1 {[%clk 0:00:12]} 58. Kf4 {[%clk 0:00:12]}  Kd2 {[%clk 0:00:13]} 59. Qb4+ {[%clk 0:00:12]}  Kd1 {[%clk 0:00:13]} 60. Qd4+ {[%clk 0:00:12]}  Kc1 {[%clk 0:00:13]} 61. Ke3 {[%clk 0:00:11]}  Kb1 {[%clk 0:00:11]} 62. Qd3 {[%clk 0:00:12]}  a5 {[%clk 0:00:11]} 63. Kd2 {[%clk 0:00:12]}  b4 {[%clk 0:00:10]} 64. Qxc2+ {[%clk 0:00:13]}  Ka1 {[%clk 0:00:10]} 65. Kc1 {[%clk 0:00:13]}  a4 {[%clk 0:00:10]} 66. Qb2# {[%clk 0:00:14]} 1-0


[Site "https://www.chess.com"]

[Event "Titled Tuesday Blitz January 18 2022"]
[White "Mokshanov, Alexey"]
[Black "Nesterov, Arseniy"]
[WhiteFideId "24121657"]
[BlackFideId "24198455"]
[WhiteElo "2141"]
[BlackElo "2489"]
[Result "0-1"]
[Round "06"]
[TimeControl "180+1"]
[Date "2022.01.18"]
[WhiteClock "0:00:07"]
[BlackClock "0:00:16"]

1. e4 {[%clk 0:03:00]}  e5 {[%clk 0:02:59]} 2. Nf3 {[%clk 0:03:01]}  Nc6 {[%clk 0:03:00]} 3. d4 {[%clk 0:03:01]}  exd4 {[%clk 0:03:00]} 4. Nxd4 {[%clk 0:03:02]}  Bb4+ {[%clk 0:02:59]} 5. c3 {[%clk 0:03:00]}  Bc5 {[%clk 0:03:00]} 6. Be3 {[%clk 0:02:59]}  Bb6 {[%clk 0:03:00]} 7. Nd2 {[%clk 0:02:54]}  Nge7 {[%clk 0:02:59]} 8. Nc4 {[%clk 0:02:38]}  Bxd4 {[%clk 0:02:59]} 9. Bxd4 {[%clk 0:02:37]}  O-O {[%clk 0:02:58]} 10. Be2 {[%clk 0:02:10]}  d5 {[%clk 0:02:56]} 11. exd5 {[%clk 0:02:11]}  Nxd5 {[%clk 0:02:56]} 12. O-O {[%clk 0:02:05]}  Nf4 {[%clk 0:02:50]} 13. Be3 {[%clk 0:01:56]}  Nxe2+ {[%clk 0:02:40]} 14. Qxe2 {[%clk 0:01:56]}  Be6 {[%clk 0:02:40]} 15. Bf4 {[%clk 0:01:48]}  Qh4 {[%clk 0:02:35]} 16. g3 {[%clk 0:01:39]}  Qh3 {[%clk 0:02:20]} 17. Ne3 {[%clk 0:01:29]}  Rac8 {[%clk 0:02:11]} 18. Rfd1 {[%clk 0:01:25]}  Ne7 {[%clk 0:02:03]} 19. f3 {[%clk 0:00:53]}  Ng6 {[%clk 0:02:00]} 20. Ng2 {[%clk 0:00:53]}  Qh5 {[%clk 0:01:41]} 21. Qf2 {[%clk 0:00:45]}  Bh3 {[%clk 0:01:33]} 22. g4 {[%clk 0:00:36]}  Qb5 {[%clk 0:01:17]} 23. a4 {[%clk 0:00:13]}  Qc6 {[%clk 0:01:02]} 24. Qg3 {[%clk 0:00:13]}  Bxg2 {[%clk 0:01:00]} 25. Kxg2 {[%clk 0:00:14]}  Rfe8 {[%clk 0:00:57]} 26. Re1 {[%clk 0:00:12]}  Rxe1 {[%clk 0:00:52]} 27. Rxe1 {[%clk 0:00:12]}  Qxa4 {[%clk 0:00:53]} 28. Bxc7 {[%clk 0:00:12]}  Qc2+ {[%clk 0:00:53]} 29. Kh3 {[%clk 0:00:10]}  Qxb2 {[%clk 0:00:51]} 30. Be5 {[%clk 0:00:10]}  Qb5 {[%clk 0:00:37]} 31. Bd4 {[%clk 0:00:09]}  h5 {[%clk 0:00:36]} 32. Kg2 {[%clk 0:00:09]}  Qg5 {[%clk 0:00:26]} 33. gxh5 {[%clk 0:00:08]}  Qxh5 {[%clk 0:00:21]} 34. Bxa7 {[%clk 0:00:07]}  Rxc3 {[%clk 0:00:18]} 35. Bd4 {[%clk 0:00:07]}  Rxf3 {[%clk 0:00:16]} 0-1


[Site "https://www.chess.com"]

[Event "Titled Tuesday Blitz January 18 2022"]
[White "Narayanan.S.L"]
[Black "Nyzhnyk, Illya"]
[WhiteFideId "5058422"]
[BlackFideId "14118084"]
[WhiteElo "2861"]
[BlackElo "2951"]
[Result "1/2-1/2"]
[Round "06"]
[TimeControl "180+1"]
[Date "2022.01.18"]
[WhiteClock "0:00:08"]
[BlackClock "0:00:08"]

1. c4 {[%clk 0:03:00]}  Nf6 {[%clk 0:02:59]} 2. Nc3 {[%clk 0:03:00]}  e6 {[%clk 0:02:59]} 3. e4 {[%clk 0:03:00]}  d6 {[%clk 0:02:59]} 4. d4 {[%clk 0:03:00]}  g6 {[%clk 0:02:59]} 5. Nf3 {[%clk 0:02:59]}  Bg7 {[%clk 0:03:00]} 6. Be2 {[%clk 0:02:59]}  O-O {[%clk 0:02:59]} 7. O-O {[%clk 0:03:00]}  Nc6 {[%clk 0:03:00]} 8. d5 {[%clk 0:02:56]}  exd5 {[%clk 0:02:59]} 9. cxd5 {[%clk 0:02:55]}  Ne7 {[%clk 0:02:59]} 10. Be3 {[%clk 0:02:53]}  Ng4 {[%clk 0:02:58]} 11. Bd4 {[%clk 0:02:53]}  Ne5 {[%clk 0:02:58]} 12. Nxe5 {[%clk 0:02:53]}  dxe5 {[%clk 0:02:59]} 13. Bc5 {[%clk 0:02:53]}  Re8 {[%clk 0:02:56]} 14. Rc1 {[%clk 0:02:51]}  Bd7 {[%clk 0:02:56]} 15. Qb3 {[%clk 0:02:48]}  b6 {[%clk 0:02:53]} 16. Ba3 {[%clk 0:02:48]}  c5 {[%clk 0:02:53]} 17. Rfd1 {[%clk 0:02:25]}  a6 {[%clk 0:02:41]} 18. Qc2 {[%clk 0:02:13]}  Qc8 {[%clk 0:02:29]} 19. b4 {[%clk 0:02:05]}  c4 {[%clk 0:02:20]} 20. d6 {[%clk 0:01:29]}  Nc6 {[%clk 0:02:19]} 21. Bxc4 {[%clk 0:01:30]}  Nd4 {[%clk 0:02:19]} 22. Qd3 {[%clk 0:01:29]}  Qb8 {[%clk 0:02:20]} 23. Ne2 {[%clk 0:01:24]}  Qxd6 {[%clk 0:02:14]} 24. Nxd4 {[%clk 0:01:24]}  exd4 {[%clk 0:02:13]} 25. b5 {[%clk 0:01:24]}  Qf6 {[%clk 0:02:14]} 26. bxa6 {[%clk 0:01:24]}  b5 {[%clk 0:02:14]} 27. Bd5 {[%clk 0:01:23]}  Rxa6 {[%clk 0:02:06]} 28. Rc7 {[%clk 0:01:22]}  Qd8 {[%clk 0:01:41]} 29. Rb7 {[%clk 0:01:18]}  Be6 {[%clk 0:01:32]} 30. Bxe6 {[%clk 0:01:19]}  Raxe6 {[%clk 0:01:28]} 31. f3 {[%clk 0:01:17]}  f5 {[%clk 0:01:28]} 32. exf5 {[%clk 0:00:56]}  Re3 {[%clk 0:01:26]} 33. Qxb5 {[%clk 0:00:54]}  Rxa3 {[%clk 0:00:40]} 34. fxg6 {[%clk 0:00:54]}  hxg6 {[%clk 0:00:28]} 35. Rd7 {[%clk 0:00:44]}  Qc8 {[%clk 0:00:12]} 36. Qd5+ {[%clk 0:00:44]}  Kh8 {[%clk 0:00:12]} 37. h4 {[%clk 0:00:37]}  Ra5 {[%clk 0:00:10]} 38. Qf7 {[%clk 0:00:37]}  Rg8 {[%clk 0:00:10]} 39. Re1 {[%clk 0:00:25]}  d3 {[%clk 0:00:08]} 40. Kh2 {[%clk 0:00:11]}  Qb8+ {[%clk 0:00:08]} 41. Kh3 {[%clk 0:00:11]}  d2 {[%clk 0:00:08]} 42. Rxd2 {[%clk 0:00:09]}  Qc8+ {[%clk 0:00:08]} 43. Rd7 {[%clk 0:00:09]}  Ra7 {[%clk 0:00:07]} 44. Re7 {[%clk 0:00:09]}  Rxd7 {[%clk 0:00:08]} 45. Rxd7 {[%clk 0:00:10]}  Qc6 {[%clk 0:00:08]} 46. Re7 {[%clk 0:00:10]}  Qc1 {[%clk 0:00:03]} 47. Kh2 {[%clk 0:00:09]}  Qc2 {[%clk 0:00:02]} 48. Re6 {[%clk 0:00:07]}  Qxa2 {[%clk 0:00:01]} 49. h5 {[%clk 0:00:05]}  Qd2 {[%clk 0:00:01]} 50. Rxg6 {[%clk 0:00:04]}  Be5+ {[%clk 0:00:01]} 51. Kh3 {[%clk 0:00:05]}  Rxg6 {[%clk 0:00:01]} 52. hxg6 {[%clk 0:00:05]}  Qh6+ {[%clk 0:00:02]} 53. Kg4 {[%clk 0:00:06]}  Bg7 {[%clk 0:00:02]} 54. Kf5 {[%clk 0:00:05]}  Bf8 {[%clk 0:00:02]} 55. g4 {[%clk 0:00:05]}  Qg7 {[%clk 0:00:03]} 56. g5 {[%clk 0:00:05]}  Qxf7+ {[%clk 0:00:04]} 57. gxf7 {[%clk 0:00:06]}  Kg7 {[%clk 0:00:05]} 58. g6 {[%clk 0:00:06]}  Be7 {[%clk 0:00:05]} 59. f4 {[%clk 0:00:06]}  Kf8 {[%clk 0:00:06]} 60. Ke6 {[%clk 0:00:06]}  Bd8 {[%clk 0:00:07]} 61. f5 {[%clk 0:00:07]}  Bh4 {[%clk 0:00:08]} 62. f6 {[%clk 0:00:07]}  Bxf6 {[%clk 0:00:08]} 63. Kxf6 {[%clk 0:00:08]} 1/2-1/2


[Site "https://www.chess.com"]

[Event "Titled Tuesday Blitz January 18 2022"]
[White "Nazaretyan, Tigran"]
[Black "Golizadeh, Asghar"]
[WhiteFideId "24162345"]
[BlackFideId "12505269"]
[WhiteElo "2192"]
[BlackElo "2403"]
[Result "1-0"]
[Round "06"]
[TimeControl "180+1"]
[Date "2022.01.18"]
[WhiteClock "0:00:45"]
[BlackClock "0:00:12"]

1. d4 {[%clk 0:03:00]}  Nf6 {[%clk 0:02:58]} 2. c4 {[%clk 0:03:00]}  e6 {[%clk 0:02:58]} 3. Nf3 {[%clk 0:02:59]}  Bb4+ {[%clk 0:02:58]} 4. Bd2 {[%clk 0:02:59]}  Qe7 {[%clk 0:02:58]} 5. Nc3 {[%clk 0:02:58]}  Nc6 {[%clk 0:02:56]} 6. e3 {[%clk 0:02:57]}  d6 {[%clk 0:02:52]} 7. a3 {[%clk 0:02:50]}  Bxc3 {[%clk 0:02:51]} 8. Bxc3 {[%clk 0:02:51]}  O-O {[%clk 0:02:52]} 9. Rc1 {[%clk 0:02:49]}  e5 {[%clk 0:02:52]} 10. d5 {[%clk 0:02:43]}  Nb8 {[%clk 0:02:49]} 11. Be2 {[%clk 0:02:41]}  Bg4 {[%clk 0:02:48]} 12. Nd2 {[%clk 0:02:41]}  Bxe2 {[%clk 0:02:47]} 13. Qxe2 {[%clk 0:02:42]}  Nbd7 {[%clk 0:02:48]} 14. b4 {[%clk 0:02:41]}  a5 {[%clk 0:02:41]} 15. O-O {[%clk 0:02:36]}  axb4 {[%clk 0:02:34]} 16. axb4 {[%clk 0:02:37]}  Ra2 {[%clk 0:02:33]} 17. Ra1 {[%clk 0:02:37]}  Rfa8 {[%clk 0:02:29]} 18. Rxa2 {[%clk 0:02:37]}  Rxa2 {[%clk 0:02:29]} 19. Ra1 {[%clk 0:02:38]}  Rxa1+ {[%clk 0:02:21]} 20. Bxa1 {[%clk 0:02:39]}  Qd8 {[%clk 0:02:20]} 21. Nb3 {[%clk 0:02:33]}  Qa8 {[%clk 0:02:17]} 22. Qb2 {[%clk 0:02:33]}  Qa4 {[%clk 0:02:10]} 23. Nd2 {[%clk 0:02:10]}  Ne4 {[%clk 0:01:58]} 24. Nf1 {[%clk 0:02:03]}  Nb6 {[%clk 0:01:47]} 25. c5 {[%clk 0:01:56]}  Nc4 {[%clk 0:01:39]} 26. Qc1 {[%clk 0:01:47]}  Qa2 {[%clk 0:01:23]} 27. Qe1 {[%clk 0:01:38]}  h6 {[%clk 0:01:03]} 28. cxd6 {[%clk 0:01:35]}  cxd6 {[%clk 0:01:02]} 29. f3 {[%clk 0:01:29]}  Ned2 {[%clk 0:00:57]} 30. Nxd2 {[%clk 0:01:22]}  Nxd2 {[%clk 0:00:58]} 31. Bc3 {[%clk 0:01:20]}  Nc4 {[%clk 0:00:56]} 32. e4 {[%clk 0:01:18]}  b5 {[%clk 0:00:48]} 33. h3 {[%clk 0:01:16]}  Qc2 {[%clk 0:00:46]} 34. Qa1 {[%clk 0:01:10]}  Kh7 {[%clk 0:00:45]} 35. Qe1 {[%clk 0:01:08]}  Qd3 {[%clk 0:00:38]} 36. Kh2 {[%clk 0:01:06]}  Ne3 {[%clk 0:00:28]} 37. Kg1 {[%clk 0:01:02]}  g5 {[%clk 0:00:28]} 38. Bd2 {[%clk 0:00:58]}  Nc4 {[%clk 0:00:28]} 39. Bc1 {[%clk 0:00:56]}  Kg6 {[%clk 0:00:27]} 40. h4 {[%clk 0:00:56]}  f6 {[%clk 0:00:27]} 41. hxg5 {[%clk 0:00:56]}  fxg5 {[%clk 0:00:28]} 42. Kh2 {[%clk 0:00:56]}  h5 {[%clk 0:00:28]} 43. Qg3 {[%clk 0:00:55]}  Qc2 {[%clk 0:00:15]} 44. Qxg5+ {[%clk 0:00:53]}  Kf7 {[%clk 0:00:14]} 45. Qxh5+ {[%clk 0:00:54]}  Ke7 {[%clk 0:00:14]} 46. Bg5+ {[%clk 0:00:54]}  Kd7 {[%clk 0:00:14]} 47. Qf7+ {[%clk 0:00:54]}  Kc8 {[%clk 0:00:15]} 48. Qe6+ {[%clk 0:00:51]}  Kc7 {[%clk 0:00:15]} 49. Be7 {[%clk 0:00:50]}  Qd2 {[%clk 0:00:11]} 50. Bxd6+ {[%clk 0:00:49]}  Nxd6 {[%clk 0:00:12]} 51. Qe7+ {[%clk 0:00:49]}  Kc8 {[%clk 0:00:12]} 52. Qxd6 {[%clk 0:00:46]}  Qf4+ {[%clk 0:00:13]} 53. Kh3 {[%clk 0:00:46]}  Qh6+ {[%clk 0:00:12]} 54. Qxh6 {[%clk 0:00:45]} 1-0


[Site "https://www.chess.com"]

[Event "Titled Tuesday Blitz January 18 2022"]
[White "Omariev, Maksim"]
[Black "Yuan, Qingyu"]
[WhiteFideId "4193423"]
[BlackFideId "8609772"]
[WhiteElo "2503"]
[BlackElo "2359"]
[Result "0-1"]
[Round "06"]
[TimeControl "180+1"]
[Date "2022.01.18"]
[WhiteClock "0:00:01"]
[BlackClock "0:00:32"]

1. e4 {[%clk 0:03:00]}  c6 {[%clk 0:02:59]} 2. d4 {[%clk 0:02:57]}  d5 {[%clk 0:03:00]} 3. exd5 {[%clk 0:02:58]}  cxd5 {[%clk 0:03:00]} 4. Bd3 {[%clk 0:02:59]}  Nc6 {[%clk 0:03:00]} 5. c3 {[%clk 0:02:58]}  Nf6 {[%clk 0:03:01]} 6. h3 {[%clk 0:02:59]}  e5 {[%clk 0:03:00]} 7. dxe5 {[%clk 0:02:56]}  Nxe5 {[%clk 0:03:01]} 8. Be2 {[%clk 0:02:57]}  Bc5 {[%clk 0:02:51]} 9. Nf3 {[%clk 0:02:53]}  Ng6 {[%clk 0:02:42]} 10. O-O {[%clk 0:02:49]}  O-O {[%clk 0:02:38]} 11. Nbd2 {[%clk 0:02:49]}  h6 {[%clk 0:02:33]} 12. Nb3 {[%clk 0:02:49]}  Bb6 {[%clk 0:02:33]} 13. Nbd4 {[%clk 0:02:28]}  Ne4 {[%clk 0:02:32]} 14. Be3 {[%clk 0:02:24]}  Qf6 {[%clk 0:02:28]} 15. Nc2 {[%clk 0:02:17]}  Nf4 {[%clk 0:02:12]} 16. Bxf4 {[%clk 0:01:50]}  Qxf4 {[%clk 0:02:11]} 17. Qxd5 {[%clk 0:01:51]}  Rd8 {[%clk 0:01:39]} 18. Qh5 {[%clk 0:00:44]}  Ng3 {[%clk 0:01:33]} 19. Qb5 {[%clk 0:00:38]}  Nxf1 {[%clk 0:01:11]} 20. Kxf1 {[%clk 0:00:39]}  Bf5 {[%clk 0:00:55]} 21. Ncd4 {[%clk 0:00:34]}  Be4 {[%clk 0:00:51]} 22. a4 {[%clk 0:00:27]}  Rd5 {[%clk 0:00:50]} 23. Qb3 {[%clk 0:00:21]}  Rad8 {[%clk 0:00:48]} 24. Re1 {[%clk 0:00:17]}  Bxf3 {[%clk 0:00:40]} 25. Bxf3 {[%clk 0:00:15]}  R5d7 {[%clk 0:00:32]} 26. Ne2 {[%clk 0:00:11]}  Qh2 {[%clk 0:00:32]} 27. Ng3 {[%clk 0:00:11]}  Rd2 {[%clk 0:00:30]} 28. Re2 {[%clk 0:00:04]}  Rd1+ {[%clk 0:00:30]} 29. Re1 {[%clk 0:00:05]}  Rxe1+ {[%clk 0:00:31]} 30. Kxe1 {[%clk 0:00:05]}  Qg1+ {[%clk 0:00:32]} 31. Nf1 {[%clk 0:00:01]}  Qxf2# {[%clk 0:00:32]} 0-1


[Site "https://www.chess.com"]